bitfinex/quotes_BTCUSD_20240823
["timestamp","ask_amount","ask_price","bid_price","bid_amount"]
[1724405428235,0.0763692,61399.0,61398.0,1.51804851]
[1724405429677,0.07622316,61399.0,61398.0,1.51804851]
[1724405430155,0.000824,61404.0,61403.0,0.001]
[1724405430347,0.000824,61404.0,61403.0,1.77498101]
[1724405430551,0.000824,61404.0,61403.0,1.79798101]
[1724405430763,0.000824,61404.0,61403.0,1.89798101]
[1724405430974,0.000824,61404.0,61403.0,1.42700898]
[1724405431569,0.000824,61404.0,61403.0,1.11529298]
[1724405432869,0.000824,61404.0,61403.0,0.68957698]
[1724405433078,0.000824,61404.0,61403.0,1.00129298]
[1724405433286,0.000784,61404.0,61403.0,0.67557698]
[1724405433510,0.000784,61404.0,61403.0,0.68757698]
[1724405433740,0.000784,61404.0,61403.0,1.01329298]
[1724405433918,0.000784,61404.0,61403.0,1.02429298]
[1724405434334,0.000784,61404.0,61403.0,1.01229298]
[1724405434533,0.000784,61404.0,61403.0,1.02329298]
[1724405435892,0.000784,61404.0,61403.0,1.01229298]
[1724405436093,0.000784,61404.0,61403.0,1.02129298]
[1724405436503,0.000784,61404.0,61403.0,1.01229298]
[1724405436849,0.000784,61404.0,61403.0,1.02329298]
[1724405438068,0.000784,61404.0,61403.0,0.67457698]
[1724405438069,0.02632815,61404.0,61403.0,0.67457698]
[1724405438511,0.02632815,61404.0,61403.0,1.00029298]
[1724405438712,0.02632815,61404.0,61403.0,0.67457698]
[1724405438919,0.65609415,61404.0,61403.0,0.022]
[1724405439186,0.33038315,61404.0,61403.0,0.022]
[1724405439349,0.65609415,61404.0,61403.0,0.022]
[1724405439560,0.16752815,61404.0,61403.0,0.022]
[1724405439901,0.16752815,61404.0,61398.0,0.162871]
[1724405439902,0.16286,61403.0,61398.0,0.162871]
[1724405440149,0.41713915,61404.0,61398.0,0.162871]
[1724405440150,0.240361,61402.0,61398.0,0.16287]
[1724405440547,0.41713915,61404.0,61399.0,0.162868]
[1724405440548,0.1393,61401.0,61399.0,0.162868]
[1724405440692,0.1393,61401.0,61394.0,0.325764]
[1724405440899,0.1393,61401.0,61399.0,0.162868]
[1724405441281,0.1393,61401.0,61398.0,0.165871]
[1724405442254,0.1393,61401.0,61399.0,0.162867]
[1724405442631,0.1393,61401.0,61398.0,0.003]
[1724405442835,0.1393,61401.0,61398.0,0.165871]
[1724405443068,0.1393,61401.0,61398.0,0.162871]
[1724405443506,0.1393,61401.0,61399.0,0.004]
[1724405443914,0.1393,61401.0,61398.0,0.167871]
[1724405444115,0.1393,61401.0,61398.0,0.171871]
[1724405444318,0.1393,61401.0,61398.0,0.167871]
[1724405445116,0.1393,61401.0,61398.0,0.162871]
[1724405445529,0.1393,61401.0,61399.0,0.005]
[1724405445731,0.1393,61401.0,61399.0,0.171868]
[1724405445933,0.1393,61401.0,61399.0,0.162868]
[1724405446973,0.1393,61401.0,61399.0,0.166868]
[1724405447391,0.1393,61401.0,61399.0,0.171868]
[1724405449359,0.1393,61401.0,61399.0,0.009]
[1724405451985,0.1393,61401.0,61400.0,0.162866]
[1724405453046,0.1393,61401.0,61400.0,0.004]
[1724405453298,0.1393,61401.0,61400.0,0.009]
[1724405453661,0.1393,61401.0,61400.0,0.171866]
[1724405454709,0.1393,61401.0,61400.0,0.18296269]
[1724405455166,0.1393,61401.0,61400.0,0.01680764]
[1724405460717,0.302163,61401.0,61400.0,0.01680764]
[1724405460915,0.62789,61401.0,61400.0,0.01680764]
[1724405463060,0.302163,61401.0,61400.0,0.01680764]
[1724405463271,0.1393,61401.0,61400.0,0.01680764]
[1724405463690,0.162863,61401.0,61400.0,0.01680764]
[1724405464918,0.162863,61401.0,61400.0,0.02086646]
[1724405465142,0.48859,61401.0,61400.0,0.02086646]
[1724405465999,0.0818,61403.0,61400.0,0.02086646]
[1724405466205,0.02632815,61404.0,61401.0,0.07970809]
[1724405466408,0.18918415,61404.0,61401.0,0.07970809]
[1724405466626,0.18918415,61404.0,61402.0,0.01185018]
[1724405466828,0.02632815,61404.0,61402.0,0.01185018]
[1724405467002,0.02632815,61404.0,61402.0,0.16286]
[1724405467207,0.02632815,61404.0,61403.0,0.01184214]
[1724405467422,0.02632815,61404.0,61403.0,0.00789476]
[1724405468775,0.02632815,61404.0,61403.0,0.00989476]
[1724405468977,0.02632815,61404.0,61403.0,0.17275276]
[1724405469186,0.02632815,61404.0,61403.0,0.00989476]
[1724405469387,0.02632815,61404.0,61403.0,0.00889476]
[1724405469716,0.02632815,61404.0,61403.0,0.01089476]
[1724405469919,0.02632815,61404.0,61403.0,0.01389476]
[1724405471795,0.02632815,61404.0,61403.0,0.01089476]
[1724405472202,0.02632815,61404.0,61403.0,0.01489476]
[1724405473979,0.18918315,61404.0,61403.0,0.01489476]
[1724405474207,0.02632815,61404.0,61403.0,0.01489476]
[1724405481752,0.02632815,61404.0,61403.0,0.25345276]
[1724405482333,0.02632815,61404.0,61403.0,1.13218774]
[1724405482571,0.02632815,61404.0,61403.0,1.48090374]
[1724405483342,0.02632815,61404.0,61403.0,1.47390374]
[1724405483687,0.02632815,61404.0,61403.0,1.50190374]
[1724405484288,0.02632815,61404.0,61403.0,1.51010445]
[1724405485870,0.02632815,61404.0,61403.0,1.50190374]
[1724405487087,0.10632815,61404.0,61403.0,0.03589476]
[1724405487291,0.33258315,61404.0,61403.0,0.03589476]
[1724405487640,0.33258315,61404.0,61403.0,0.028]
[1724405487845,0.33258315,61404.0,61403.0,0.03588495]
[1724405488185,0.38150267,61404.0,61403.0,0.03588495]
[1724405488385,0.07524767,61404.0,61403.0,0.03588495]
[1724405488517,0.02632815,61404.0,61403.0,0.03588495]
[1724405489751,0.07524767,61404.0,61403.0,0.03588495]
[1724405490156,0.23810267,61404.0,61403.0,0.03588495]
[1724405490362,0.27228315,61404.0,61403.0,0.03588495]
[1724405490615,0.15834724,61404.0,61403.0,0.03588495]
[1724405490767,0.15834724,61404.0,61403.0,0.03679135]
[1724405492329,0.15834586,61404.0,61403.0,0.03679135]
[1724405493619,0.02632815,61404.0,61403.0,0.03679135]
[1724405494302,0.07524586,61404.0,61403.0,0.19964935]
[1724405494509,0.02632815,61404.0,61403.0,0.19964935]
[1724405494912,0.07524586,61404.0,61403.0,0.19964935]
[1724405495086,0.02632815,61404.0,61403.0,0.19964935]
[1724405495286,0.07524586,61404.0,61403.0,0.19964935]
[1724405495689,0.07524586,61404.0,61403.0,0.03679135]
[1724405495893,0.23810086,61404.0,61403.0,0.03679135]
[1724405496096,0.21874586,61404.0,61403.0,0.03679135]
[1724405496279,0.38160086,61404.0,61403.0,0.03679135]
[1724405496935,0.38160086,61404.0,61403.0,0.02279135]
[1724405497123,0.38160086,61404.0,61403.0,0.00879135]
[1724405497295,0.38160086,61404.0,61403.0,0.01279135]
[1724405497669,0.33268315,61404.0,61403.0,0.01779135]
[1724405499137,0.65839415,61404.0,61403.0,0.01779135]
[1724405499557,0.33268315,61404.0,61403.0,0.0099064]
[1724405500291,0.65839415,61404.0,61403.0,0.0099064]
[1724405500741,0.65839415,61404.0,61403.0,0.01779482]
[1724405501391,0.33268315,61404.0,61403.0,0.01779482]
[1724405503183,0.08129878,61400.0,61399.0,0.0009053]
[1724405503427,0.08129878,61400.0,61399.0,0.1637743]
[1724405504396,0.08129878,61400.0,61399.0,0.1727743]
[1724405505656,0.08129878,61400.0,61399.0,0.0189053]
[1724405505862,0.08129878,61400.0,61399.0,0.1817743]
[1724405506059,0.08129878,61400.0,61399.0,0.0189053]
[1724405507026,0.56989678,61400.0,61399.0,0.0189053]
[1724405507221,0.71329678,61400.0,61399.0,0.0189053]
[1724405507416,1.08794659,61400.0,61399.0,0.0189053]
[1724405507857,0.76221459,61400.0,61399.0,0.0189053]
[1724405508396,1.08794659,61400.0,61399.0,0.0189053]
[1724405508602,0.76221459,61400.0,61399.0,0.0189053]
[1724405509240,1.08794659,61400.0,61399.0,0.0189053]
[1724405509457,1.03902878,61400.0,61399.0,0.0189053]
[1724405509807,0.76221459,61400.0,61399.0,0.0189053]
[1724405510692,0.71329678,61400.0,61399.0,0.0189053]
[1724405511643,0.76221459,61400.0,61399.0,0.0189053]
[1724405511848,0.71329678,61400.0,61399.0,0.0189053]
[1724405513018,1.11875316,61400.0,61399.0,0.0189053]
[1724405513241,1.19212881,61400.0,61399.0,0.0189053]
[1724405513441,1.11875316,61400.0,61399.0,0.0189053]
[1724405513637,1.19212881,61400.0,61399.0,0.0189053]
[1724405514064,1.19212881,61400.0,61399.0,0.0099053]
[1724405514493,1.11875316,61400.0,61399.0,0.0149053]
[1724405514867,1.11957716,61400.0,61399.0,0.0149053]
[1724405515724,1.11957716,61400.0,61399.0,0.0059053]
[1724405515982,1.11957716,61400.0,61399.0,0.0119053]
[1724405516556,0.84272488,61400.0,61399.0,0.0119053]
[1724405517920,1.16845688,61400.0,61399.0,0.0119053]
[1724405518555,1.11957716,61400.0,61399.0,0.0119053]
[1724405521435,0.57072078,61400.0,61399.0,0.0119053]
[1724405521638,0.293867,61400.0,61399.0,0.1595053]
[1724405522424,0.619599,61400.0,61399.0,0.1595053]
[1724405522941,0.619599,61400.0,61399.0,1.05357468]
[1724405522942,0.08212278,61400.0,61399.0,1.05357468]
[1724405523153,0.08212278,61400.0,61399.0,1.54331566]
[1724405524743,0.08212278,61400.0,61399.0,1.58416791]
[1724405525992,0.08212278,61400.0,61399.0,1.57816791]
[1724405526398,0.08212278,61400.0,61399.0,1.59216791]
[1724405526826,0.08212278,61400.0,61399.0,1.57816791]
[1724405527226,0.08212278,61400.0,61399.0,1.56931566]
[1724405527425,0.08212278,61400.0,61399.0,1.58716665]
[1724405527626,0.08212278,61400.0,61399.0,1.60116665]
[1724405528245,0.08212278,61400.0,61399.0,1.60912064]
[1724405535243,0.08212278,61400.0,61399.0,1.60912086]
[1724405535872,0.08212278,61400.0,61399.0,1.60412086]
[1724405538919,0.08212278,61400.0,61399.0,1.93076526]
[1724405539426,0.08212278,61400.0,61399.0,2.03076526]
[1724405540872,0.08212278,61400.0,61399.0,2.01291405]
[1724405541604,0.03212278,61400.0,61399.0,2.01291405]
[1724405541836,0.03212278,61400.0,61399.0,2.030765]
[1724405542055,0.05766756,61400.0,61399.0,2.03076391]
[1724405552066,0.05766756,61400.0,61399.0,2.03076379]
[1724405554129,0.05766756,61400.0,61399.0,1.95103941]
[1724405554331,0.05766756,61400.0,61399.0,2.03076379]
[1724405554906,0.05766756,61400.0,61399.0,2.01291405]
[1724405555105,0.05766756,61400.0,61399.0,2.03076382]
[1724405555306,0.05766756,61400.0,61399.0,2.01291405]
[1724405555514,0.05766756,61400.0,61399.0,2.03076382]
[1724405558773,0.05766756,61400.0,61399.0,2.01291405]
[1724405558947,0.000784,61404.0,61403.0,1.21973038]
[1724405559145,0.000784,61404.0,61403.0,1.42458313]
[1724405560606,0.000784,61404.0,61403.0,1.43858313]
[1724405561273,0.000784,61404.0,61403.0,1.57598313]
[1724405561473,0.000784,61404.0,61403.0,1.58998313]
[1724405568169,0.02632832,61404.0,61403.0,1.58998313]
[1724405568392,0.02632832,61404.0,61403.0,1.51025875]
[1724405568581,0.02632832,61404.0,61403.0,1.58998313]
[1724405569245,0.02632832,61404.0,61403.0,1.51468313]
[1724405569617,0.02632832,61404.0,61403.0,1.45258313]
[1724405570965,0.02632832,61404.0,61403.0,1.45258316]
[1724405571603,0.02632832,61404.0,61403.0,1.34985878]
[1724405572981,0.02632832,61404.0,61403.0,1.34985887]
[1724405577030,0.02632832,61404.0,61403.0,1.41275887]
[1724405577471,0.02632832,61404.0,61403.0,1.34985887]
[1724405583433,0.10912832,61404.0,61403.0,1.42958325]
[1724405585932,0.02632832,61404.0,61403.0,1.42958325]
[1724405588202,0.02632832,61404.0,61403.0,1.63041182]
[1724405588411,0.02632832,61404.0,61403.0,1.64826163]
[1724405588847,0.02632832,61404.0,61403.0,1.56853725]
[1724405589056,0.02632832,61404.0,61403.0,1.64825565]
[1724405589501,0.02632832,61404.0,61403.0,1.59938317]
[1724405590167,0.02632832,61404.0,61403.0,1.64825565]
[1724405591017,0.02632832,61404.0,61403.0,2.53503257]
[1724405591255,0.02632832,61404.0,61403.0,2.41283641]
[1724405591761,0.02632832,61404.0,61403.0,2.73855241]
[1724405592394,0.02632832,61404.0,61403.0,2.41283235]
[1724405592803,0.02632832,61404.0,61403.0,2.39883235]
[1724405593455,0.02632832,61404.0,61403.0,2.41283235]
[1724405593652,0.02632832,61404.0,61403.0,2.38483235]
[1724405593858,0.02632832,61404.0,61403.0,2.39883235]
[1724405594048,0.02632832,61404.0,61403.0,2.41283235]
[1724405594452,0.02632832,61404.0,61403.0,2.38483235]
[1724405594678,0.02632832,61404.0,61403.0,2.39878369]
[1724405594880,0.02632832,61404.0,61403.0,2.41278369]
[1724405595531,0.02632832,61404.0,61403.0,2.45503878]
[1724405595734,0.02632832,61404.0,61403.0,2.53476316]
[1724405596188,0.02632832,61404.0,61403.0,2.53476352]
[1724405596622,0.02632832,61404.0,61403.0,2.48597044]
[1724405597043,0.02632832,61404.0,61403.0,2.46048852]
[1724405598288,0.02632832,61404.0,61403.0,2.09928305]
[1724405599360,0.02632832,61404.0,61403.0,2.09928102]
[1724405599675,0.00825,61406.0,61405.0,1.466677]
[1724405599874,0.00825,61406.0,61405.0,1.91472728]
[1724405600086,0.00825,61406.0,61405.0,1.96351614]
[1724405600799,0.00825,61406.0,61405.0,1.99151614]
[1724405601584,0.00825,61406.0,61405.0,1.94272728]
[1724405601929,0.00825,61406.0,61405.0,1.92487998]
[1724405602157,0.00825,61406.0,61405.0,1.94272813]
[1724405602734,0.00825,61406.0,61405.0,1.94272815]
[1724405603439,0.00825,61406.0,61405.0,1.94172815]
[1724405604835,0.00825,61406.0,61405.0,1.44982215]
[1724405605172,0.08405,61406.0,61405.0,1.34982215]
[1724405605548,0.08405,61406.0,61405.0,1.42954653]
[1724405605749,0.08405,61406.0,61405.0,1.40154653]
[1724405605985,0.10959421,61406.0,61405.0,0.99611615]
[1724405606215,0.17259421,61406.0,61405.0,0.18070117]
[1724405606414,0.17259421,61406.0,61405.0,0.502559]
[1724405606616,0.17259421,61406.0,61405.0,0.176853]
[1724405606817,0.17259421,61406.0,61405.0,0.502559]
[1724405607402,0.17259421,61406.0,61405.0,0.516559]
[1724405607780,0.17259421,61406.0,61405.0,0.502559]
[1724405608147,0.17259421,61406.0,61405.0,0.509559]
[1724405608861,0.17259421,61406.0,61405.0,0.495559]
[1724405609270,0.17259421,61406.0,61405.0,0.503559]
[1724405609857,0.17259421,61406.0,61405.0,0.495559]
[1724405610027,0.17259421,61406.0,61405.0,0.015]
[1724405610236,0.17259421,61406.0,61405.0,0.177853]
[1724405610469,0.17259421,61406.0,61405.0,0.015]
[1724405610665,0.17259421,61406.0,61405.0,0.177853]
[1724405612634,0.17259421,61406.0,61405.0,0.015]
[1724405613336,0.17259421,61406.0,61405.0,0.177853]
[1724405615750,0.17259421,61406.0,61405.0,0.503559]
[1724405615954,0.17259421,61406.0,61405.0,0.177853]
[1724405616703,0.17259421,61406.0,61405.0,0.015]
[1724405617332,0.03379421,61406.0,61405.0,0.177853]
[1724405618134,0.03379421,61406.0,61405.0,0.503559]
[1724405618789,0.03379421,61406.0,61405.0,0.829265]
[1724405621648,0.03379421,61406.0,61405.0,1.31897398]
[1724405621836,0.03379421,61406.0,61405.0,1.48737398]
[1724405622249,0.03379421,61406.0,61405.0,1.50522381]
[1724405622446,0.03379421,61406.0,61405.0,1.50522386]
[1724405622865,0.03379421,61406.0,61405.0,1.48737398]
[1724405623077,0.11479421,61406.0,61405.0,0.503559]
[1724405624056,0.11479421,61406.0,61405.0,0.177853]
[1724405626381,0.11479421,61406.0,61405.0,0.015]
[1724405628542,0.60334521,61406.0,61405.0,0.015]
[1724405628789,0.92904621,61406.0,61405.0,0.015]
[1724405628990,0.19664421,61406.0,61405.0,0.015]
[1724405629883,0.66174521,61406.0,61405.0,0.015]
[1724405630039,0.98744621,61406.0,61405.0,0.015]
[1724405634843,1.99087968,61406.0,61405.0,0.015]
[1724405635043,1.31314721,61406.0,61405.0,0.015]
[1724405635269,1.39287159,61406.0,61405.0,0.015]
[1724405635413,1.49041233,61406.0,61405.0,0.015]
[1724405635632,1.39287159,61406.0,61405.0,0.015]
[1724405635836,1.39287159,61406.0,61405.0,0.008]
[1724405636038,1.285771,61405.0,61404.0,0.0009064]
[1724405636486,1.38328912,61405.0,61404.0,0.0009064]
[1724405636900,1.285771,61405.0,61404.0,0.0009064]
[1724405637747,1.8729807,61405.0,61404.0,0.0009064]
[1724405637888,1.77547998,61405.0,61404.0,0.0009064]
[1724405638087,1.93945876,61405.0,61404.0,0.0009064]
[1724405638315,2.03945876,61405.0,61404.0,0.0009064]
[1724405638531,1.466131,61386.0,61366.0,0.10369749]
[1724405638682,1.30644838,61386.0,61371.0,0.162941]
[1724405638876,1.30644838,61386.0,61366.0,0.0782]
[1724405638877,1.35519353,61386.0,61369.0,0.162946]
[1724405639080,1.30644838,61386.0,61367.0,0.325905]
[1724405639290,1.33200637,61386.0,61369.0,0.162946]
[1724405639668,1.33200637,61386.0,61367.0,0.325905]
[1724405639808,1.33200637,61386.0,61366.0,0.0782]
[1724405640018,1.33400637,61386.0,61385.0,0.0019064]
[1724405640422,1.25528199,61386.0,61385.0,0.0019064]
[1724405640626,1.25728199,61386.0,61385.0,0.0029064]
[1724405641251,1.25428199,61386.0,61385.0,0.0019064]
[1724405642096,1.41626077,61386.0,61385.0,0.0009064]
[1724405642271,1.41626077,61386.0,61385.0,0.0019064]
[1724405642272,1.42126077,61386.0,61385.0,0.0019064]
[1724405642807,1.42226077,61386.0,61385.0,0.0019064]
[1724405642971,1.42426077,61386.0,61385.0,0.0029064]
[1724405643175,1.42126077,61386.0,61385.0,0.0019064]
[1724405643372,1.41926077,61386.0,61385.0,0.0009064]
[1724405643549,1.42226077,61386.0,61385.0,0.0029064]
[1724405643757,1.26028199,61386.0,61385.0,0.0029064]
[1724405644863,1.75109197,61386.0,61385.0,0.0029064]
[1724405645040,1.75209197,61386.0,61385.0,0.0029064]
[1724405645906,1.74209197,61386.0,61385.0,0.0009064]
[1724405646326,1.74709197,61386.0,61385.0,0.0029064]
[1724405647340,1.75009197,61386.0,61385.0,0.0029064]
[1724405647539,1.74709197,61386.0,61385.0,0.0029064]
[1724405648914,1.42128497,61386.0,61385.0,0.0029064]
[1724405650282,1.58385955,61386.0,61385.0,0.0029064]
[1724405650843,1.42128497,61386.0,61385.0,0.0029064]
[1724405652384,1.42428497,61386.0,61385.0,0.0029064]
[1724405653128,1.42128497,61386.0,61385.0,0.0029064]
[1724405654183,1.42428497,61386.0,61385.0,0.0029064]
[1724405654414,1.42128497,61386.0,61385.0,0.0029064]
[1724405654624,1.53986889,61386.0,61385.0,0.0029064]
[1724405654958,1.42128497,61386.0,61385.0,0.0029064]
[1724405660443,1.50108345,61386.0,61385.0,0.0029064]
[1724405662935,1.82689045,61386.0,61385.0,0.0029064]
[1724405663139,1.82989045,61386.0,61385.0,0.0029064]
[1724405663541,1.50408345,61386.0,61385.0,0.0029064]
[1724405663759,1.6572478,61386.0,61385.0,0.0029064]
[1724405664167,1.9830548,61386.0,61385.0,0.0029064]
[1724405664349,1.6542478,61386.0,61385.0,0.0029064]
[1724405664650,1.6552478,61386.0,61385.0,0.0029064]
[1724405664852,1.6572478,61386.0,61385.0,0.0029064]
[1724405665270,1.9830548,61386.0,61385.0,0.0029064]
[1724405665734,1.6572478,61386.0,61385.0,0.0029064]
[1724405668352,1.66518031,61386.0,61385.0,0.0029064]
[1724405669657,1.66418031,61386.0,61385.0,0.0029064]
[1724405669859,1.66218031,61386.0,61385.0,0.0029064]
[1724405673060,1.6542478,61386.0,61385.0,0.0029064]
[1724405675436,1.70289744,61386.0,61385.0,0.0029064]
[1724405675629,1.70389744,61386.0,61385.0,0.0029064]
[1724405675802,1.70289744,61386.0,61385.0,0.0029064]
[1724405676383,1.6572478,61386.0,61385.0,0.0029064]
[1724405677203,1.6542478,61386.0,61385.0,0.0029064]
[1724405677403,1.6572478,61386.0,61385.0,0.0029064]
[1724405678485,1.7572478,61386.0,61385.0,0.0029064]
[1724405678625,2.2048863,61386.0,61385.0,0.0029064]
[1724405679498,2.0830548,61386.0,61385.0,0.0029064]
[1724405680974,2.0850548,61386.0,61385.0,0.0029064]
[1724405681864,2.23151152,61386.0,61385.0,0.0029064]
[1724405682010,2.22951152,61386.0,61385.0,0.0029064]
[1724405682447,2.0830548,61386.0,61385.0,0.0029064]
[1724405682695,2.0850548,61386.0,61385.0,0.0029064]
[1724405684546,2.25014082,61386.0,61385.0,0.0029064]
[1724405687199,2.0850548,61386.0,61385.0,0.0029064]
[1724405694648,1.51468345,61386.0,61385.0,0.0029064]
[1724405694991,1.67979974,61386.0,61385.0,0.0029064]
[1724405697914,1.6798064,61386.0,61385.0,0.0029064]
[1724405698581,1.43488497,61386.0,61385.0,0.1440064]
[1724405698780,1.58167248,61386.0,61385.0,0.1440064]
[1724405699027,1.43488497,61386.0,61385.0,0.1440064]
[1724405699545,1.33188497,61386.0,61385.0,0.1430064]
[1724405699839,1.47864776,61386.0,61385.0,0.1430064]
[1724405700581,1.49586375,61386.0,61385.0,0.0623064]
[1724405700766,1.49386375,61386.0,61385.0,0.0613064]
[1724405700980,1.49586375,61386.0,61385.0,0.0623064]
[1724405701176,1.49886375,61386.0,61385.0,0.0633064]
[1724405701508,1.49686375,61386.0,61385.0,0.0623064]
[1724405701709,1.49586375,61386.0,61385.0,0.0623064]
[1724405702105,1.49886375,61386.0,61385.0,0.0623064]
[1724405703289,1.49886375,61386.0,61385.0,0.0019064]
[1724405704111,1.49986375,61386.0,61385.0,0.0019064]
[1724405704984,1.49886375,61386.0,61385.0,0.0019064]
[1724405708026,1.49986375,61386.0,61385.0,0.0019064]
[1724405708602,1.82567075,61386.0,61385.0,0.0019064]
[1724405708979,1.82767075,61386.0,61385.0,0.0019064]
[1724405710091,1.82967075,61386.0,61385.0,0.0019064]
[1724405710296,1.82567075,61386.0,61385.0,0.0019064]
[1724405711428,1.82767075,61386.0,61385.0,0.0019064]
[1724405712400,1.66069197,61386.0,61385.0,0.0019064]
[1724405712632,1.33488497,61386.0,61385.0,0.0669064]
[1724405713102,1.48166935,61386.0,61385.0,0.0669064]
[1724405713760,1.48166935,61386.0,61385.0,0.1450064]
[1724405716637,1.56146783,61386.0,61385.0,0.1450064]
[1724405716838,1.48166935,61386.0,61385.0,0.1450064]
[1724405717234,1.39746485,61386.0,61385.0,0.1450064]
[1724405718852,1.25068047,61386.0,61385.0,0.1450064]
[1724405720908,0.84507499,61386.0,61385.0,0.1450064]
[1724405722022,0.84007499,61386.0,61385.0,0.1440064]
[1724405722222,0.18846099,61386.0,61385.0,0.1440064]
[1724405722439,0.02855799,61386.0,61385.0,0.1440064]
[1724405722581,0.02855799,61386.0,61385.0,0.31489381]
[1724405722783,0.02855799,61386.0,61385.0,0.64070581]
[1724405723607,0.03055799,61386.0,61385.0,0.96651781]
[1724405723814,0.02555799,61386.0,61385.0,0.96651781]
[1724405724183,0.02755799,61386.0,61385.0,0.97151781]
[1724405724590,0.02555799,61386.0,61385.0,0.96651781]
[1724405724833,0.02555799,61386.0,61385.0,0.97251781]
[1724405725035,0.02555799,61386.0,61385.0,0.97951781]
[1724405731668,0.02555799,61386.0,61385.0,0.9715364]
[1724405731999,0.02555799,61386.0,61385.0,0.97758988]
[1724405737992,0.02555799,61386.0,61385.0,1.46740486]
[1724405738178,0.02555799,61386.0,61385.0,1.81107154]
[1724405738387,0.02555799,61386.0,61385.0,1.93407154]
[1724405738592,0.02555799,61386.0,61385.0,1.93507154]
[1724405739173,0.02555799,61386.0,61385.0,1.93007154]
[1724405739673,0.02555799,61386.0,61385.0,1.92707154]
[1724405739888,0.02555799,61386.0,61385.0,1.92207154]
[1724405740100,0.02555799,61386.0,61385.0,1.93807154]
[1724405740427,0.02555799,61386.0,61385.0,1.95207154]
[1724405740827,0.02555799,61386.0,61385.0,1.93807154]
[1724405741089,0.02555799,61386.0,61385.0,1.92407154]
[1724405741419,0.02555799,61386.0,61385.0,1.95207154]
[1724405741937,0.02555799,61386.0,61385.0,1.94907154]
[1724405744213,0.02555799,61386.0,61385.0,2.02887002]
[1724405746583,0.02555799,61386.0,61385.0,2.02886792]
[1724405748016,0.02555799,61386.0,61385.0,1.94906944]
[1724405748212,0.02555799,61386.0,61385.0,2.02886792]
[1724405750020,0.02555799,61386.0,61385.0,2.02886811]
[1724405753204,0.02555799,61386.0,61385.0,2.01101534]
[1724405753408,0.02555799,61386.0,61385.0,2.02886823]
[1724405753625,0.02555799,61386.0,61385.0,2.01101534]
[1724405753853,0.02555799,61386.0,61385.0,2.02886824]
[1724405756732,0.02555799,61386.0,61385.0,2.01101534]
[1724405756927,0.02555799,61386.0,61385.0,2.02886831]
[1724405759975,0.02555799,61386.0,61385.0,1.94906983]
[1724405760180,0.02555799,61386.0,61385.0,1.94906999]
[1724405760381,0.02555799,61386.0,61385.0,2.02886847]
[1724405762762,0.02555799,61386.0,61385.0,2.02886848]
[1724405763126,0.02555799,61386.0,61385.0,2.03186848]
[1724405763543,0.02555799,61386.0,61385.0,2.02986848]
[1724405763747,0.02555799,61386.0,61385.0,2.02886848]
[1724405764406,0.02555799,61386.0,61385.0,2.02986848]
[1724405764550,0.02555799,61386.0,61385.0,2.02886848]
[1724405765155,0.02555799,61386.0,61385.0,2.05435917]
[1724405766265,0.02555799,61386.0,61385.0,2.03650604]
[1724405766592,0.02555799,61386.0,61385.0,2.05435887]
[1724405768422,0.02555799,61386.0,61385.0,1.97456039]
[1724405768822,0.02555799,61386.0,61385.0,2.05435887]
[1724405769854,0.02555799,61386.0,61385.0,2.0543593]
[1724405773249,0.02555799,61386.0,61385.0,2.01101534]
[1724405773458,0.02555799,61386.0,61385.0,2.05435932]
[1724405776453,0.02555799,61386.0,61385.0,1.15683684]
[1724405776649,0.02555799,61386.0,61385.0,1.45715783]
[1724405777346,0.02555799,61386.0,61385.0,1.44315783]
[1724405777549,0.02555799,61386.0,61385.0,1.50895631]
[1724405777755,0.02555799,61386.0,61385.0,1.52295631]
[1724405778816,0.02555799,61386.0,61385.0,1.50895631]
[1724405779561,0.02555799,61386.0,61385.0,1.52295631]
[1724405779798,0.02555799,61386.0,61385.0,1.50895631]
[1724405780327,0.02555799,61386.0,61385.0,1.52295631]
[1724405780800,0.02555799,61386.0,61385.0,1.53695631]
[1724405782750,0.02555799,61386.0,61385.0,1.5369572]
[1724405783087,0.02555799,61386.0,61385.0,1.5624497]
[1724405783283,0.02555799,61386.0,61385.0,1.6111857]
[1724405783508,0.02555799,61386.0,61385.0,1.5856932]
[1724405783671,0.02555799,61386.0,61385.0,1.6111853]
[1724405784595,0.02555799,61386.0,61385.0,1.5856932]
[1724405787409,0.02555799,61386.0,61385.0,1.58577897]
[1724405789374,0.02555799,61386.0,61385.0,2.04443527]
[1724405789695,0.02555799,61386.0,61385.0,2.04443401]
[1724405790040,0.02555799,61386.0,61385.0,1.94679047]
[1724405790543,0.02555799,61386.0,61385.0,1.5599572]
[1724405790692,0.02555799,61386.0,61385.0,1.63319041]
[1724405790898,0.02555799,61386.0,61385.0,1.6087834]
[1724405791330,0.02555799,61386.0,61385.0,1.63319041]
[1724405791531,0.02555799,61386.0,61385.0,1.5599572]
[1724405791933,0.02555799,61386.0,61385.0,1.48015872]
[1724405792290,0.02555799,61386.0,61385.0,1.5599572]
[1724405793124,0.02555799,61386.0,61385.0,1.60878227]
[1724405793329,0.02555799,61386.0,61385.0,1.5599572]
[1724405794089,0.02555799,61386.0,61385.0,1.60878268]
[1724405794228,0.02555799,61386.0,61385.0,1.60878223]
[1724405794606,0.02555799,61386.0,61385.0,1.5599572]
[1724405794738,0.02555799,61386.0,61385.0,1.60878254]
[1724405795575,0.02555799,61386.0,61385.0,1.5599572]
[1724405795820,0.02555799,61386.0,61385.0,1.59092891]
[1724405796013,0.02555799,61386.0,61385.0,1.60878277]
[1724405796995,0.02555799,61386.0,61385.0,1.52898429]
[1724405797416,0.02555799,61386.0,61385.0,1.5599572]
[1724405798275,0.02555799,61386.0,61385.0,1.60878322]
[1724405799393,0.02555799,61386.0,61385.0,1.60878344]
[1724405799599,0.02555799,61386.0,61385.0,1.55995742]
[1724405800237,0.02555799,61386.0,61385.0,1.60878344]
[1724405800450,0.02555799,61386.0,61385.0,1.60878273]
[1724405801490,0.02555799,61386.0,61385.0,1.55995721]
[1724405801903,0.02555799,61386.0,61385.0,1.6087837]
[1724405803492,0.02555799,61386.0,61385.0,1.52898522]
[1724405803690,0.02555799,61386.0,61385.0,1.55995721]
[1724405803935,0.17185799,61386.0,61385.0,0.96734375]
[1724405804305,0.17185799,61386.0,61385.0,0.9690004]
[1724405806632,0.17185799,61386.0,61385.0,0.95114653]
[1724405806787,0.17185799,61386.0,61385.0,0.96900107]
[1724405812255,0.02555799,61386.0,61385.0,0.96900107]
[1724405813543,0.02555799,61386.0,61385.0,0.96900111]
[1724405813890,0.02555799,61386.0,61385.0,1.45881609]
[1724405816838,0.02555799,61386.0,61385.0,1.45881625]
[1724405820477,0.02555799,61386.0,61385.0,1.5076503]
[1724405823180,0.02555799,61386.0,61385.0,1.48979324]
[1724405823419,0.02555799,61386.0,61385.0,1.50764722]
[1724405825646,0.02555799,61386.0,61385.0,1.50804722]
[1724405827499,0.02555799,61386.0,61385.0,1.5878457]